bitfinex-derivatives/quotes_SOLF0:USTF0_20250311
["timestamp","ask_amount","ask_price","bid_price","bid_amount"]
[1741680234649,8.1108,123.32,123.3,62.0]
[1741680234851,8.1108,123.32,123.3,62.051882]
[1741680235039,267.98,123.33,123.3,62.051882]
[1741680235244,8.1105,123.32,123.3,62.051882]
[1741680235445,267.98,123.33,123.3,62.051882]
[1741680235847,8.1111,123.31,123.3,62.051882]
[1741680236845,8.1107,123.32,123.3,62.051882]
[1741680237443,8.1111,123.31,123.3,62.051882]
[1741680239747,267.98,123.33,123.3,62.051882]
[1741680239954,8.1107,123.32,123.3,62.051882]
[1741680240456,8.1111,123.31,123.3,62.051882]
[1741680240751,267.98,123.33,123.3,62.051882]
[1741680240953,276.0901,123.33,123.3,62.051882]
[1741680241255,267.98,123.33,123.3,62.051882]
[1741680241449,8.1104,123.32,123.3,62.051882]
[1741680241650,269.9624,123.39,123.31,32.3]
[1741680241852,2.0733,123.38,123.31,32.3]
[1741680242256,2.0733,123.38,123.34,0.05651953]
[1741680242552,8.1084,123.35,123.34,0.05651953]
[1741680244153,8.1084,123.35,123.34,1.953e-05]
[1741680244358,32.3,123.37,123.3,62.0]
[1741680245561,0.05930941,123.35,123.32,0.06119186]
[1741680246757,8.1097,123.33,123.32,0.06119186]
[1741680247950,0.05930941,123.35,123.26,2.1462]
[1741680248149,0.05930941,123.35,123.25,32.28]
[1741680248150,34.5654,123.34,123.25,32.28]
[1741680248557,8.1134,123.28,123.24,2.2031]
[1741680248755,8.1134,123.28,123.24,34.4831]
[1741680249152,8.1143,123.26,123.25,0.05995173]
[1741680249356,0.05755955,123.27,123.25,0.05995173]
[1741680249562,0.05755955,123.27,123.22,32.28]
[1741680249755,0.05755955,123.27,123.25,0.0621542]
[1741680250159,8.17125955,123.27,123.25,0.0621542]
[1741680250866,8.1143,123.26,123.25,0.0621542]
[1741680251165,8.1143,123.26,123.25,62.0621542]
[1741680252963,0.05755955,123.27,123.25,62.0621542]
[1741680253165,8.17155955,123.27,123.25,62.0621542]
[1741680253365,0.05755955,123.27,123.25,62.0621542]
[1741680254057,8.1143,123.26,123.25,62.0621542]
[1741680258466,8.1143,123.26,123.25,62.0]
[1741680258768,8.1172,123.22,123.2,2.1486]
[1741680258968,32.33755955,123.27,123.2,2.1486]
[1741680259164,8.1169,123.23,123.2,2.1486]
[1741680259570,8.1169,123.23,123.21,62.0]
[1741680259763,8.1691719,123.23,123.21,62.0]
[1741680259964,0.0522719,123.23,123.21,62.0]
[1741680260868,8.1689719,123.23,123.21,62.0]
[1741680261068,0.0522719,123.23,123.21,62.0]
[1741680261860,0.0522719,123.23,123.22,32.28]
[1741680265068,0.0522719,123.23,123.22,94.28]
[1741680266672,8.1153,123.25,123.22,94.28]
[1741680267575,34.36,123.3,123.22,94.28]
[1741680268074,0.05983888,123.27,123.25,0.06125092]
[1741680268474,8.1148,123.26,123.25,0.06125092]
[1741680272074,8.1163,123.23,123.22,62.0]
[1741680273374,0.0543226,123.24,123.22,62.0]
[1741680273572,8.1151,123.25,123.22,62.0]
[1741680273784,0.05513558,123.24,123.22,62.06108444]
[1741680274174,8.17113558,123.24,123.22,62.06108444]
[1741680275967,8.1163,123.23,123.22,62.06108444]
[1741680276975,8.17113558,123.24,123.22,62.06108444]
[1741680279273,0.05513558,123.24,123.22,62.06108444]
[1741680281379,8.1163,123.23,123.22,62.06108444]
[1741680281680,0.05513558,123.24,123.22,62.06108444]
[1741680282580,8.17103558,123.24,123.22,62.06108444]
[1741680287385,8.1163,123.23,123.22,62.06108444]
[1741680290282,8.17113558,123.24,123.22,62.06108444]
[1741680290482,0.05513558,123.24,123.22,62.06108444]
[1741680292386,8.17083558,123.24,123.22,62.06108444]
[1741680294590,0.05513558,123.24,123.22,62.06108444]
[1741680294895,8.1163,123.23,123.22,62.06108444]
[1741680300901,8.17113558,123.24,123.22,62.06108444]
[1741680301097,0.05513558,123.24,123.22,62.06108444]
[1741680304099,8.17103558,123.24,123.22,62.06108444]
[1741680309106,8.1163,123.23,123.22,62.06108444]
[1741680312810,8.17093558,123.24,123.22,62.06108444]
[1741680313306,0.05513558,123.24,123.22,70.17768444]
[1741680313506,8.73822161,123.27,123.22,62.06108444]
[1741680313705,267.76,123.28,123.23,41.01822161]
[1741680313900,267.76,123.28,123.24,8.1153]
[1741680314104,267.76,123.28,123.25,8.73822161]
[1741680314305,267.76,123.28,123.26,32.28]
[1741680314702,267.82169136,123.28,123.26,32.33396765]
[1741680315813,275.93519136,123.28,123.26,32.33396765]
[1741680316923,8.73822161,123.32,123.27,8.73822161]
[1741680317107,267.76,123.34,123.3,8.73822161]
[1741680317311,275.8694,123.34,123.31,41.01822161]
[1741680317613,267.76,123.34,123.31,32.28]
[1741680318016,8.1097,123.33,123.31,32.34012394]
[1741680319714,275.92378626,123.34,123.31,32.34012394]
[1741680319912,275.92378626,123.34,123.31,41.07834555]
[1741680320305,8.16378626,123.34,123.31,41.07834555]
[1741680320618,8.16378626,123.34,123.32,62.0]
[1741680320916,0.05458626,123.34,123.32,62.0]
[1741680321110,8.1097,123.33,123.32,62.0]
[1741680321316,8.73822161,123.38,123.32,62.0]
[1741680321512,8.1061,123.39,123.35,8.73822161]
[1741680321717,276.45822161,123.4,123.35,40.99822161]
[1741680321916,8.73822161,123.37,123.35,32.26]
[1741680322118,8.73822161,123.37,123.33,2.2704]
[1741680322313,267.72,123.4,123.33,43.26862161]
[1741680322515,0.02265749,123.36,123.34,0.05355758]
[1741680324310,280.99253215,123.46,123.35,8.73822161]
[1741680324516,8.73822161,123.44,123.39,8.73822161]
[1741680324717,8.73822161,123.44,123.4,32.26]
[1741680325021,8.73822161,123.41,123.4,32.26]
[1741680325316,8.73822161,123.41,123.37,32.28]
[1741680325621,32.32,123.4,123.39,1.23e-06]
[1741680325815,40.4251,123.4,123.39,1.23e-06]
[1741680326022,34.76,123.4,123.08,81.2591]
[1741680326215,13.63649497,123.36,123.27,37.0578]
[1741680326422,8.1089,123.35,123.29,8.1119]
[1741680326612,8.1089,123.35,123.3,32.54]
[1741680326817,0.0558,123.33,123.31,8.16392883]
[1741680328025,0.0558,123.33,123.32,62.0]
[1741680330628,2.1951,123.37,123.32,94.68]
[1741680330814,267.62,123.38,123.32,108.31649497]
[1741680331014,267.62,123.38,123.33,2.1131]
[1741680331721,283.41159497,123.44,123.36,13.63649497]
[1741680331920,283.41159497,123.44,123.37,32.82]
[1741680332322,283.41159497,123.44,123.39,0.05603157]
[1741680333126,8.1051,123.4,123.39,0.05603157]
[1741680333928,8.1051,123.4,123.39,62.05603157]
[1741680334528,15.83159497,123.44,123.39,62.05603157]
[1741680334725,267.54,123.45,123.39,62.05603157]
[1741680334922,267.54,123.45,123.4,32.84]
[1741680335228,267.54,123.45,123.4,54.58119497]
[1741680335723,267.54,123.45,123.4,46.47649497]
[1741680336227,267.54,123.45,123.4,32.84]
[1741680336823,8.1027,123.44,123.4,32.84]
[1741680337025,267.54,123.45,123.4,54.58119497]
[1741680337826,8.1026,123.44,123.4,54.58119497]
[1741680338023,267.54,123.45,123.4,46.47649497]
[1741680338827,267.54,123.45,123.41,62.0]
[1741680339226,2.3075,123.49,123.42,0.06180925]
[1741680339532,2.3075,123.49,123.43,32.88]
[1741680339923,267.48,123.51,123.45,0.05969868]
[1741680341129,13.63649497,123.5,123.45,0.05969868]
[1741680341930,8.1012,123.46,123.45,0.05969868]
[1741680342326,8.1012,123.46,123.45,62.05969868]
[1741680345027,46.81649497,123.46,123.39,2.3175]
[1741680345227,13.63649497,123.44,123.36,33.18]
[1741680345634,8.1053,123.4,123.36,33.18]
[1741680345938,13.63649497,123.42,123.35,2.2809]
[1741680346137,13.63649497,123.42,123.35,35.5009]
[1741680346339,0.05969868,123.4,123.37,0.05738736]
[1741680348038,0.05969868,123.4,123.38,62.0]
[1741680349237,8.1058,123.39,123.38,62.0]
[1741680351537,0.05969868,123.4,123.38,62.0]
[1741680354036,267.38,123.43,123.38,75.63649497]
[1741680354244,275.4835,123.43,123.38,83.74269497]
[1741680354947,267.38,123.43,123.38,83.74269497]
[1741680355142,8.1039,123.42,123.38,83.74269497]
[1741680355343,267.38,123.43,123.38,75.63649497]
[1741680356049,267.38,123.43,123.4,8.1048]
[1741680356247,275.4838,123.43,123.4,33.02]
[1741680356442,267.38,123.43,123.4,33.08104018]
[1741680356842,8.1042,123.42,123.4,33.08104018]
[1741680357148,267.38,123.43,123.4,33.08104018]
[1741680357548,8.1044,123.42,123.4,33.08104018]
[1741680357845,267.38,123.43,123.4,41.18614018]
[1741680358045,2.1664,123.46,123.4,46.71753515]
[1741680358646,2.1664,123.46,123.4,54.82243515]
[1741680358841,2.1664,123.46,123.4,33.08104018]
[1741680359052,8.1035,123.43,123.4,33.08104018]
[1741680359245,15.80289497,123.46,123.41,62.0]
[1741680359546,49.24289497,123.46,123.41,62.0]
[1741680360943,35.6064,123.46,123.41,62.0]
[1741680361142,43.7079,123.46,123.41,70.1045]
[1741680361341,35.6064,123.46,123.41,62.0]
[1741680362746,8.1023,123.45,123.41,62.0]
[1741680363049,49.24289497,123.46,123.41,62.0]
[1741680363252,8.1029,123.44,123.41,62.0]
[1741680363647,49.24289497,123.46,123.41,62.0]
[1741680364949,13.63649497,123.44,123.41,62.0]
[1741680365149,33.48,123.43,123.41,62.0]
[1741680365552,8.1038,123.42,123.41,62.0]
[1741680366952,33.48,123.43,123.41,62.0]
[1741680367251,8.1038,123.42,123.41,62.0]
[1741680371056,33.48,123.43,123.4,0.06104018]
[1741680371257,8.1045,123.41,123.4,0.06104018]
[1741680371557,13.63649497,123.42,123.3,191.0]
[1741680371759,13.63649497,123.42,123.33,33.56]
[1741680371958,13.63649497,123.4,123.33,33.56]
[1741680372152,13.63649497,123.4,123.34,62.0]
[1741680372153,47.17649497,123.4,123.34,62.0]
[1741680372756,8.1071,123.37,123.36,0.05674947]
[1741680373662,0.05501345,123.38,123.36,0.05674947]
[1741680375064,8.1071,123.37,123.36,0.05674947]
[1741680375564,0.05501345,123.38,123.36,0.05674947]
[1741680376360,8.1071,123.37,123.36,0.05674947]
[1741680380471,41.7671,123.37,123.36,4.947e-05]
[1741680382080,8.1116,123.31,123.26,33.68]
[1741680382273,8.1116,123.31,123.26,35.9302]
[1741680382477,47.31649497,123.34,123.26,35.9302]
[1741680383189,8.16913753,123.31,123.29,0.05986694]
[1741680383585,0.05763753,123.31,123.29,0.05986694]
[1741680384088,8.1117,123.3,123.29,0.05986694]
[1741680385090,8.1117,123.3,123.29,62.05986694]
[1741680388088,0.05763753,123.31,123.29,62.05986694]
[1741680388691,0.05763753,123.31,123.29,70.17216694]
[1741680388891,0.05763753,123.31,123.29,62.05986694]
[1741680390094,0.05763753,123.31,123.29,70.17216694]
[1741680390694,0.05763753,123.31,123.29,62.05986694]
[1741680391300,8.16873753,123.31,123.29,62.05986694]
[1741680391597,0.05763753,123.31,123.29,62.05986694]
[1741680393795,8.1099,123.33,123.29,70.17196694]
[1741680393991,2.2084,123.36,123.29,75.69636191]
[1741680394200,8.1091,123.34,123.3,10.3046]
[1741680394894,0.05634863,123.33,123.31,0.0588934]
[1741680398306,33.38,123.38,123.31,0.0588934]
[1741680398599,33.38,123.38,123.3,4.4782]
[1741680399205,13.63649497,123.37,123.3,4.4782]
[1741680399501,13.63649497,123.37,123.33,0.05108315]
[1741680399694,8.1095,123.34,123.33,0.05108315]
[1741680400195,33.46,123.35,123.33,0.05108315]
[1741680400904,8.1091,123.34,123.33,0.05108315]
[1741680402192,16.837437,123.34,123.33,0.05108315]
[1741680403197,16.837437,123.34,123.33,8.315e-05]
[1741680404510,19.058637,123.34,123.33,8.315e-05]
[1741680405005,21.378937,123.34,123.33,8.315e-05]
[1741680406105,19.058637,123.34,123.33,8.315e-05]
[1741680406303,16.837437,123.34,123.33,8.315e-05]
[1741680409503,284.437437,123.34,123.33,8.315e-05]
[1741680412712,8.1117,123.3,123.29,62.0]
[1741680413309,8.728337,123.31,123.24,8.728337]
[1741680413510,8.728337,123.28,123.24,8.728337]
[1741680413808,0.05488664,123.27,123.25,0.05939446]
[1741680414315,0.05488664,123.27,123.26,62.0]
[1741680417215,8.728337,123.32,123.26,111.822637]
[1741680417412,8.728337,123.32,123.27,8.728337]
[1741680417612,8.728337,123.31,123.26,49.822637]
[1741680418007,16.838637,123.33,123.28,16.840937]
[1741680418211,16.838637,123.33,123.29,0.05688465]
[1741680418409,8.728337,123.33,123.29,0.05688465]
[1741680420418,8.1115,123.31,123.29,0.05688465]
[1741680420715,16.840037,123.3,123.29,0.05688465]
[1741680421213,8.728337,123.31,123.29,0.05688465]
[1741680421610,8.728337,123.32,123.3,62.0]
[1741680421817,8.1117,123.3,123.29,8.465e-05]
[1741680422018,16.840037,123.3,123.29,8.465e-05]
[1741680424317,21.76103282,123.3,123.29,8.465e-05]
[1741680426217,8.115,123.25,123.24,62.0]
[1741680426720,8.1147,123.26,123.24,62.0]
[1741680426923,46.46933282,123.28,123.24,62.0]
[1741680427222,8.1147,123.26,123.25,0.06190291]
[1741680428114,281.32933282,123.26,123.19,6.7378]
[1741680428313,13.64933282,123.23,123.16,2.2875]
[1741680428509,32.88,123.22,123.16,2.2875]
[1741680428715,8.1194,123.19,123.16,2.2875]
[1741680429314,8.17985994,123.19,123.16,2.33888878]
[1741680429514,0.06045994,123.19,123.16,2.33888878]
[1741680430119,0.06045994,123.19,123.16,35.19888878]
[1741680430617,0.06045994,123.19,123.16,43.31938878]
[1741680430809,267.68,123.26,123.17,13.64933282]
[1741680431116,275.7945,123.26,123.19,13.64933282]
[1741680431319,275.7945,123.26,123.2,45.2321]
[1741680431715,275.7945,123.26,123.21,8.1176]
[1741680432017,275.7945,123.26,123.22,0.05409286]
[1741680432018,0.05244759,123.24,123.22,0.05409286]
[1741680432217,267.68,123.26,123.23,32.8]
[1741680433522,267.68,123.26,123.23,40.9159]
[1741680434320,267.68,123.26,123.23,32.8]
[1741680434523,8.114,123.27,123.23,40.9162]
[1741680434721,2.3312,123.3,123.24,62.0]
[1741680434926,2.3312,123.3,123.24,62.05945981]
[1741680435127,13.64933282,123.25,123.14,19.15627342]
[1741680435318,32.74,123.26,123.17,13.64933282]
[1741680435622,40.8543,123.27,123.21,8.1176]
[1741680435824,32.74,123.27,123.21,8.1176]
[1741680436023,13.64933282,123.29,123.2,4.5864]
[1741680436225,46.36933282,123.29,123.2,4.5864]
[1741680436420,0.05596024,123.26,123.23,0.05803242]
[1741680436626,8.17036024,123.26,123.23,0.05803242]
[1741680437028,0.05596024,123.26,123.23,0.05803242]
[1741680437723,8.1152,123.25,123.23,0.05803242]
[1741680438027,0.05596024,123.26,123.24,62.0]
[1741680438228,8.17056024,123.26,123.24,62.0]
[1741680438827,0.05596024,123.26,123.24,62.0]
[1741680441731,8.17066024,123.26,123.24,62.0]
[1741680442225,8.1069,123.38,123.24,29.73866564]
[1741680442431,2.1544,123.39,123.32,13.64933282]
[1741680442622,2.1544,123.39,123.33,32.66]
[1741680442828,8.1065,123.38,123.33,32.66]
[1741680443221,34.8144,123.39,123.3,46.30933282]
[1741680443423,34.8144,123.39,123.34,0.06165334]
[1741680443625,13.64933282,123.38,123.34,0.06165334]
[1741680443826,267.68,123.37,123.34,0.06165334]
[1741680444027,46.28933282,123.36,123.28,13.64933282]
[1741680444427,8.1093,123.34,123.28,13.64933282]
[1741680445134,0.05829092,123.32,123.3,0.0527001]
[1741680446734,0.05829092,123.32,123.3,8.1644001]
[1741680446934,308.3872,123.37,123.3,46.30203292]
[1741680447434,308.3872,123.37,123.31,8.1106]
[1741680448034,308.3872,123.37,123.33,0.05985995]
[1741680448427,275.7872,123.37,123.34,62.0]
[1741680448627,8.1078,123.36,123.34,62.0]
[1741680448829,267.68,123.37,123.34,62.0]
[1741680449232,8.1084,123.35,123.34,62.0]
[1741680450242,8.1084,123.35,123.33,0.05985995]
[1741680450440,267.68,123.37,123.33,0.05985995]
[1741680450741,8.108,123.36,123.33,0.05985995]
[1741680450941,267.68,123.37,123.33,0.05985995]
[1741680451137,8.1079,123.36,123.33,0.05985995]
[1741680451539,1.41079175,123.46,123.35,13.64933282]
[1741680451742,8.1038,123.42,123.37,13.64933282]
[1741680451938,272.0308,123.45,123.38,40.786]
[1741680452138,272.0308,123.45,123.38,34.97439293]
[1741680452337,275.7221,123.45,123.39,13.64933282]
[1741680452540,275.7221,123.45,123.4,8.1046]
[1741680452743,275.7221,123.45,123.41,32.68]
[1741680452949,267.62,123.45,123.41,32.73544548]
[1741680453146,267.62,123.45,123.42,62.0]
[1741680453551,267.62,123.45,123.43,8.1032]
[1741680453744,267.62,123.45,123.41,35.04834548]
[1741680454145,267.62,123.45,123.42,8.1036]
[1741680454653,267.62,123.45,123.41,35.04834548]
[1741680454954,267.62,123.45,123.43,8.1027]
[1741680455156,267.56,123.51,123.44,32.76]
[1741680455663,8.101,123.47,123.44,32.76]
[1741680455857,8.101,123.47,123.46,0.05833579]
[1741680457456,32.68,123.49,123.46,0.05833579]
[1741680457959,8.0999,123.48,123.46,0.05833579]
[1741680459653,267.56,123.51,123.46,0.05833579]
[1741680459855,275.6582,123.51,123.47,62.0]
[1741680460054,267.56,123.51,123.47,62.0]
[1741680460357,8.0987,123.5,123.47,62.0]
[1741680460953,275.6582,123.51,123.47,62.0]
[1741680461159,267.56,123.51,123.47,62.0]
[1741680461754,267.56,123.51,123.47,94.94]
[1741680461957,61.25396442,123.56,123.47,99.3422]
[1741680462150,8.0965,123.54,123.47,99.3422]
[1741680462351,26.07406442,123.56,123.47,99.3422]
[1741680462547,21.77416442,123.54,123.49,0.0560176]
[1741680463255,26.07406442,123.56,123.49,0.0560176]
[1741680463759,8.0932,123.59,123.52,8.0968]
[1741680464061,2.3214,123.62,123.51,21.77416442]
[1741680464254,21.77416442,123.61,123.52,2.1639]
[1741680464557,21.77416442,123.61,123.54,0.05264604]
[1741680464756,21.77416442,123.59,123.54,0.05264604]
[1741680465156,8.0937,123.58,123.52,2.1639]
[1741680465355,21.77416442,123.61,123.55,0.05172912]
[1741680465757,21.77416442,123.57,123.55,0.05172912]
[1741680466260,8.0946,123.56,123.55,0.05172912]
[1741680466559,39.892,123.58,123.5,36.18]
[1741680466757,2.1692,123.56,123.51,62.0]
[1741680466955,21.77416442,123.55,123.48,2.1639]
[1741680467361,21.77416442,123.55,123.48,10.2633]
[1741680467564,21.77416442,123.53,123.43,38.28]
[1741680467755,21.77416442,123.53,123.43,40.3983]
[1741680467955,21.77416442,123.51,123.43,40.3983]
[1741680468155,38.28,123.5,123.43,2.1183]
[1741680468357,21.77416442,123.49,123.43,2.1183]
[1741680468559,8.1004,123.48,123.43,2.1183]
[1741680468760,21.77416442,123.49,123.43,2.1183]
[1741680468962,40.4494,123.5,123.43,2.1183]
[1741680469158,0.05240571,123.47,123.4,42.9077]
[1741680469461,8.15340571,123.47,123.41,8.1041]
[1741680469853,8.15340571,123.47,123.42,62.05118347]
[1741680470463,8.1012,123.46,123.42,62.05118347]
[1741680471054,0.05240571,123.47,123.42,62.05118347]
[1741680471055,8.15320571,123.47,123.42,62.05118347]
[1741680471455,0.05240571,123.47,123.42,62.05118347]
[1741680471654,0.05240571,123.47,123.42,70.15468347]
[1741680472161,0.05240571,123.47,123.42,70.15498347]
[1741680472763,8.15300571,123.47,123.42,70.15498347]
[1741680473165,0.05240571,123.47,123.42,70.15498347]
[1741680474470,0.05240571,123.47,123.43,8.103]
[1741680475066,0.05240571,123.47,123.42,62.05118347]
[1741680475666,24.35,123.57,123.46,21.77416442]
[1741680475869,2.3085,123.56,123.49,21.77416442]
[1741680476071,10.4034,123.56,123.49,8.0988]
[1741680476268,10.4034,123.56,123.48,61.37416442]
[1741680476469,2.3085,123.56,123.48,39.6]
[1741680476772,2.3085,123.56,123.48,47.6994]
[1741680477170,0.05289679,123.53,123.51,0.05982738]
[1741680478770,0.05289679,123.53,123.52,62.0]
[1741680478969,0.05289679,123.53,123.52,70.0973]
[1741680479173,10.2965,123.59,123.52,62.0]
[1741680479367,8.0928,123.59,123.52,101.8]
[1741680479563,42.0186,123.61,123.52,101.8]
[1741680479769,8.0934,123.58,123.52,101.8]
[1741680480273,8.0928,123.59,123.52,101.8]
[1741680480465,41.9586,123.61,123.54,0.05807236]
[1741680480666,289.05416442,123.6,123.54,0.05807236]
[1741680481170,21.77416442,123.58,123.48,39.7]
[1741680481479,21.77416442,123.56,123.48,39.7]
[1741680481670,8.0958,123.55,123.48,47.7994]
[1741680482071,21.77416442,123.56,123.48,39.72]
[1741680482271,0.05533898,123.53,123.5,0.05265671]
[1741680484270,0.05533898,123.53,123.51,62.0]
[1741680484871,8.15243898,123.53,123.51,62.0]
[1741680485069,0.05533898,123.53,123.5,0.05265671]
[1741680485371,8.0977,123.52,123.5,0.05265671]
[1741680485970,8.0979,123.51,123.5,0.05265671]
[1741680487874,8.0975,123.52,123.5,0.05265671]
[1741680488068,0.05533898,123.53,123.51,62.0]
[1741680488266,0.05533898,123.53,123.5,0.05265671]
[1741680488673,8.0979,123.51,123.5,0.05265671]
[1741680490878,0.05533898,123.53,123.5,0.05265671]
[1741680491074,8.0975,123.52,123.5,0.05265671]
[1741680491268,8.0975,123.52,123.5,62.05265671]
[1741680491474,8.0973,123.52,123.5,62.05265671]
[1741680492779,0.05533898,123.53,123.5,62.05265671]
[1741680494180,8.15243898,123.53,123.5,62.05265671]
[1741680494381,0.05533898,123.53,123.5,62.05265671]
[1741680494878,8.15233898,123.53,123.5,62.05265671]
[1741680497181,8.0979,123.51,123.5,62.05265671]
[1741680497581,8.0979,123.51,123.5,0.05265671]
[1741680500482,8.0979,123.51,123.5,62.05265671]
[1741680501180,13.59432727,123.52,123.44,2.3577]
[1741680501486,13.59432727,123.5,123.43,2.3394]
[1741680501785,8.1012,123.46,123.43,2.3394]
[1741680502283,13.59432727,123.48,123.42,2.1665]
[1741680502484,0.05195722,123.46,123.43,0.05863823]
[1741680502886,8.1025,123.45,123.43,0.05863823]
[1741680503381,0.05195722,123.46,123.43,0.05863823]
[1741680503986,280.88628449,123.46,123.39,4.6115]
[1741680504187,8.1042,123.42,123.39,4.6115]
[1741680504788,283.17242727,123.46,123.39,4.6115]
[1741680505087,13.59432727,123.44,123.36,59.76182727]
[1741680505287,8.1038,123.42,123.41,0.05876205]
[1741680505482,13.59432727,123.42,123.34,4.3918]
[1741680505683,13.59432727,123.4,123.34,4.3918]
[1741680505879,8.1072,123.37,123.34,2.242]
[1741680506182,37.96,123.39,123.34,2.242]
[1741680506585,0.0575938,123.38,123.35,0.05439565]
[1741680507086,8.1076,123.37,123.35,0.05439565]
[1741680507787,0.0575938,123.38,123.35,0.05439565]
[1741680507980,8.1071,123.37,123.35,0.05439565]
[1741680508383,0.0575938,123.38,123.35,0.05439565]
[1741680508590,8.1642938,123.38,123.35,0.05439565]
[1741680508891,0.0575938,123.38,123.35,0.05439565]
[1741680509089,8.1075,123.37,123.35,0.05439565]
[1741680509287,0.0575938,123.38,123.35,0.05439565]
[1741680509790,8.1077,123.37,123.35,0.05439565]
[1741680511291,8.1078,123.36,123.35,0.05439565]
[1741680514500,8.1074,123.37,123.35,0.05439565]
[1741680514892,0.0575938,123.38,123.35,0.05439565]
[1741680515191,8.1078,123.36,123.35,0.05439565]
[1741680517187,0.0575938,123.38,123.35,0.05439565]
[1741680517497,8.1078,123.36,123.35,0.05439565]
[1741680517994,4.5586,123.36,123.35,0.05439565]
[1741680518295,0.0575938,123.38,123.35,0.05439565]
[1741680519797,8.1078,123.36,123.35,0.05439565]
[1741680525999,289.34620074,123.38,123.28,2.3262]
[1741680526201,289.28860694,123.38,123.28,41.3514]
[1741680527103,289.28860694,123.38,123.29,8.1121]
[1741680527302,8.1103,123.33,123.32,0.05557193]
[1741680527601,0.06077287,123.34,123.32,0.05557193]
[1741680528601,8.17017287,123.34,123.32,0.05557193]
[1741680529000,0.06077287,123.34,123.32,0.05557193]
[1741680529199,8.1097,123.33,123.32,0.05557193]
[1741680530500,8.16997287,123.34,123.32,0.05557193]
[1741680530706,0.06077287,123.34,123.32,0.05557193]
[1741680531397,8.17037287,123.34,123.32,0.05557193]
[1741680531602,0.06077287,123.34,123.32,0.05557193]
[1741680532001,8.1097,123.33,123.32,0.05557193]
[1741680535712,0.06077287,123.34,123.32,0.05557193]
[1741680535912,8.17017287,123.34,123.32,0.05557193]
[1741680536506,0.06077287,123.34,123.32,0.05557193]
[1741680536803,8.1097,123.33,123.32,0.05557193]
[1741680537011,0.06077287,123.34,123.32,0.05557193]
[1741680537313,8.17017287,123.34,123.32,0.05557193]
[1741680537710,0.06077287,123.34,123.32,0.05557193]
[1741680537911,8.1097,123.33,123.32,0.05557193]
[1741680541417,0.06077287,123.34,123.32,0.05557193]
[1741680541814,8.16987287,123.34,123.32,0.05557193]
[1741680542021,0.06077287,123.34,123.32,0.05557193]
[1741680543119,0.06077287,123.34,123.32,8.16557193]
[1741680543825,0.06077287,123.34,123.32,0.05557193]
[1741680544325,8.1097,123.33,123.32,0.05557193]
[1741680544519,0.06077287,123.34,123.32,0.05557193]
[1741680544718,8.1097,123.33,123.32,0.05557193]
[1741680545114,0.06077287,123.34,123.26,51.73810824]
[1741680545318,8.1108,123.32,123.28,8.113]
[1741680545524,13.63610824,123.36,123.26,51.73810824]
[1741680545725,13.63610824,123.36,123.29,8.112]
[1741680546118,13.63610824,123.36,123.26,51.73810824]
[1741680546424,8.1102,123.33,123.31,0.05372109]
[1741680546621,0.05141294,123.34,123.31,0.05372109]
[1741680547620,8.1097,123.33,123.31,0.05372109]
[1741680548021,0.05141294,123.34,123.31,0.05372109]
[1741680548725,8.16081294,123.34,123.31,0.05372109]
[1741680550823,8.1099,123.33,123.31,0.05372109]
[1741680551223,0.05141294,123.34,123.31,0.05372109]
[1741680551424,8.1097,123.33,123.31,0.05372109]
[1741680551929,8.16071294,123.34,123.31,0.05372109]
[1741680552228,0.05141294,123.34,123.31,0.05372109]
[1741680552428,0.05141294,123.34,123.31,10.44912109]
[1741680553028,0.05141294,123.34,123.31,2.33842109]
[1741680553323,0.05141294,123.34,123.31,0.05372109]
[1741680553525,13.68752118,123.34,123.31,0.05372109]
[1741680553718,13.68752118,123.34,123.27,2.2847]
[1741680554125,0.05141294,123.34,123.27,2.2847]
[1741680554631,8.1108,123.32,123.28,8.1127]
[1741680554825,8.1108,123.32,123.29,0.0537557]
[1741680555022,0.05455771,123.31,123.29,0.0537557]
[1741680555428,35.4,123.37,123.29,35.4737557]
[1741680555633,35.4,123.37,123.32,8.1098]